[Event "Titled Tuesday Blitz July 25 Late 2023"]
[White "Sarkar, Justin"]
[Black "Eggleston, Thomas A"]
[WhiteFideId "2010011"]
[BlackFideId "412139"]
[WhiteElo "2238"]
[BlackElo "2402"]
[Result "0-1"]
[Round "9"]
[TimeControl "180+2"]
[Date "2023.07.25"]
[WhiteClock "0:00:00"]
[BlackClock "0:01:32"]
[Board "101"]

1. d4 {[%clk 0:02:40]}  e6 {[%clk 0:02:59]} 2. c4 {[%clk 0:02:36]}  f5 {[%clk 0:02:59]} 3. Nf3 {[%clk 0:02:32]}  Nf6 {[%clk 0:02:59]} 4. g3 {[%clk 0:02:23]}  Be7 {[%clk 0:02:59]} 5. Bg2 {[%clk 0:02:17]}  O-O {[%clk 0:02:59]} 6. O-O {[%clk 0:02:00]}  d6 {[%clk 0:02:59]} 7. b4 {[%clk 0:01:57]}  Ne4 {[%clk 0:02:53]} 8. Bb2 {[%clk 0:01:53]}  Bf6 {[%clk 0:02:53]} 9. Qb3 {[%clk 0:01:36]}  a5 {[%clk 0:02:52]} 10. b5 {[%clk 0:01:30]}  a4 {[%clk 0:02:50]} 11. Qc2 {[%clk 0:01:21]}  c5 {[%clk 0:02:34]} 12. Rd1 {[%clk 0:01:03]}  Qe7 {[%clk 0:02:22]} 13. e3 {[%clk 0:00:35]}  Nd7 {[%clk 0:02:16]} 14. Nfd2 {[%clk 0:00:26]}  Nxd2 {[%clk 0:02:07]} 15. Rxd2 {[%clk 0:00:20]}  e5 {[%clk 0:01:57]} 16. Qxf5 {[%clk 0:00:10]}  exd4 {[%clk 0:01:54]} 17. exd4 {[%clk 0:00:01]}  a3 {[%clk 0:01:36]} 18. Nxa3 {[%clk 0:00:00]}  Bxd4 {[%clk 0:01:32]} 0-1


[Site "https://www.chess.com"]

[Event "Titled Tuesday Blitz July 25 Late 2023"]
[White "Ardila, Oscar Humberto"]
[Black "Davidson, Kevin"]
[WhiteFideId "4404742"]
[BlackFideId "2056810"]
[WhiteElo "2236"]
[BlackElo "2388"]
[Result "0-1"]
[Round "9"]
[TimeControl "180+2"]
[Date "2023.07.25"]
[WhiteClock "0:00:40"]
[BlackClock "0:00:03"]
[Board "103"]

1. d4 {[%clk 0:02:55]}  Nf6 {[%clk 0:02:57]} 2. c4 {[%clk 0:02:55]}  g6 {[%clk 0:02:56]} 3. Nc3 {[%clk 0:02:54]}  Bg7 {[%clk 0:02:55]} 4. Nf3 {[%clk 0:02:55]}  O-O {[%clk 0:02:53]} 5. e3 {[%clk 0:02:55]}  d6 {[%clk 0:02:53]} 6. Be2 {[%clk 0:02:54]}  Nc6 {[%clk 0:02:47]} 7. O-O {[%clk 0:02:54]}  e5 {[%clk 0:02:35]} 8. d5 {[%clk 0:02:54]}  Ne7 {[%clk 0:02:33]} 9. Qc2 {[%clk 0:02:52]}  Ne8 {[%clk 0:02:29]} 10. b3 {[%clk 0:02:49]}  f5 {[%clk 0:02:28]} 11. Bb2 {[%clk 0:02:48]}  Nf6 {[%clk 0:02:13]} 12. Rad1 {[%clk 0:02:46]}  h6 {[%clk 0:02:06]} 13. b4 {[%clk 0:02:44]}  g5 {[%clk 0:01:58]} 14. c5 {[%clk 0:02:39]}  a6 {[%clk 0:01:56]} 15. a4 {[%clk 0:02:38]}  f4 {[%clk 0:01:42]} 16. exf4 {[%clk 0:02:31]}  exf4 {[%clk 0:01:36]} 17. Nd4 {[%clk 0:02:21]}  Nexd5 {[%clk 0:01:16]} 18. Bc4 {[%clk 0:02:19]}  c6 {[%clk 0:01:16]} 19. Nf5 {[%clk 0:02:09]}  Bxf5 {[%clk 0:01:10]} 20. Qxf5 {[%clk 0:02:08]}  dxc5 {[%clk 0:01:06]} 21. Qg6 {[%clk 0:01:57]}  Qe8 {[%clk 0:00:40]} 22. Qf5 {[%clk 0:01:44]}  cxb4 {[%clk 0:00:35]} 23. Nxd5 {[%clk 0:01:44]}  cxd5 {[%clk 0:00:28]} 24. Bd3 {[%clk 0:01:40]}  Qd7 {[%clk 0:00:19]} 25. Qg6 {[%clk 0:01:39]}  Qf7 {[%clk 0:00:19]} 26. Qf5 {[%clk 0:01:33]}  Ne4 {[%clk 0:00:18]} 27. Bxe4 {[%clk 0:01:18]}  dxe4 {[%clk 0:00:17]} 28. Qxe4 {[%clk 0:00:57]}  Bxb2 {[%clk 0:00:15]} 29. Rd6 {[%clk 0:00:57]}  Bg7 {[%clk 0:00:12]} 30. h4 {[%clk 0:00:56]}  Rae8 {[%clk 0:00:12]} 31. Qxb4 {[%clk 0:00:53]}  gxh4 {[%clk 0:00:08]} 32. Rfd1 {[%clk 0:00:47]}  f3 {[%clk 0:00:07]} 33. Qg4 {[%clk 0:00:45]}  fxg2 {[%clk 0:00:06]} 34. Rg6 {[%clk 0:00:43]}  Qxf2+ {[%clk 0:00:04]} 35. Kh2 {[%clk 0:00:42]}  g1=Q+ {[%clk 0:00:04]} 36. Kh3 {[%clk 0:00:42]}  Re3+ {[%clk 0:00:04]} 37. Qg3 {[%clk 0:00:40]}  Rxg3+ {[%clk 0:00:03]} 38. Rxg3 {[%clk 0:00:40]}  Qgxg3# {[%clk 0:00:03]} 0-1


[Site "https://www.chess.com"]

[Event "Titled Tuesday Blitz July 25 Late 2023"]
[White "Cooklev, Steven"]
[Black "Lopez Perdomo, Juan David"]
[WhiteFideId "2050552"]
[BlackFideId "4405137"]
[WhiteElo "2375"]
[BlackElo "2224"]
[Result "1-0"]
[Round "9"]
[TimeControl "180+2"]
[Date "2023.07.25"]
[WhiteClock "0:00:18"]
[BlackClock "0:00:21"]
[Board "104"]

1. e4 {[%clk 0:03:00]}  e6 {[%clk 0:02:59]} 2. d4 {[%clk 0:03:00]}  d5 {[%clk 0:02:59]} 3. Nd2 {[%clk 0:03:01]}  Nf6 {[%clk 0:02:59]} 4. e5 {[%clk 0:03:02]}  Nfd7 {[%clk 0:02:59]} 5. Bd3 {[%clk 0:03:02]}  c5 {[%clk 0:03:00]} 6. c3 {[%clk 0:03:03]}  Nc6 {[%clk 0:03:00]} 7. Ngf3 {[%clk 0:03:03]}  Be7 {[%clk 0:02:58]} 8. O-O {[%clk 0:03:02]}  f5 {[%clk 0:02:56]} 9. exf6 {[%clk 0:02:51]}  Bxf6 {[%clk 0:02:56]} 10. Re1 {[%clk 0:02:44]}  Kf7 {[%clk 0:02:56]} 11. h4 {[%clk 0:02:05]}  Re8 {[%clk 0:02:35]} 12. Ng5+ {[%clk 0:02:03]}  Bxg5 {[%clk 0:02:32]} 13. Qh5+ {[%clk 0:01:52]}  Kf8 {[%clk 0:02:28]} 14. hxg5 {[%clk 0:01:51]}  cxd4 {[%clk 0:01:34]} 15. Bxh7 {[%clk 0:01:17]}  Ke7 {[%clk 0:01:30]} 16. Qg6 {[%clk 0:00:50]}  Nde5 {[%clk 0:01:28]} 17. Qxg7+ {[%clk 0:00:49]}  Kd6 {[%clk 0:01:28]} 18. cxd4 {[%clk 0:00:47]}  Nd7 {[%clk 0:01:03]} 19. Nf3 {[%clk 0:00:43]}  Kc7 {[%clk 0:01:01]} 20. Bf4+ {[%clk 0:00:42]}  Kb6 {[%clk 0:01:01]} 21. Re3 {[%clk 0:00:39]}  Re7 {[%clk 0:01:01]} 22. Rb3+ {[%clk 0:00:35]}  Ka6 {[%clk 0:01:01]} 23. Bd3+ {[%clk 0:00:35]}  b5 {[%clk 0:00:56]} 24. Qg6 {[%clk 0:00:27]}  Na5 {[%clk 0:00:31]} 25. Rxb5 {[%clk 0:00:21]}  Nc4 {[%clk 0:00:32]} 26. Rxd5 {[%clk 0:00:18]}  Nb6 {[%clk 0:00:27]} 27. Rxd8 {[%clk 0:00:18]}  Kb7 {[%clk 0:00:21]} 28. Be4+ {[%clk 0:00:17]}  Nd5 {[%clk 0:00:20]} 29. Rxd5 {[%clk 0:00:17]}  exd5 {[%clk 0:00:21]} 30. Bxd5# {[%clk 0:00:18]} 1-0


[Site "https://www.chess.com"]

[Event "Titled Tuesday Blitz July 25 Late 2023"]
[White "Haitin, Ilja"]
[Black "Winslow, Elliott"]
[WhiteFideId "4501764"]
[BlackFideId "2002523"]
[WhiteElo "2374"]
[BlackElo "2196"]
[Result "1-0"]
[Round "9"]
[TimeControl "180+2"]
[Date "2023.07.25"]
[WhiteClock "0:00:43"]
[BlackClock "0:00:00"]
[Board "105"]

1. Nf3 {[%clk 0:02:58]}  g6 {[%clk 0:02:59]} 2. e4 {[%clk 0:02:56]}  Bg7 {[%clk 0:02:57]} 3. d4 {[%clk 0:02:53]}  d6 {[%clk 0:02:57]} 4. c3 {[%clk 0:02:53]}  Nd7 {[%clk 0:02:53]} 5. Bd3 {[%clk 0:02:53]}  e5 {[%clk 0:02:52]} 6. O-O {[%clk 0:02:53]}  Ngf6 {[%clk 0:02:49]} 7. Nbd2 {[%clk 0:02:53]}  O-O {[%clk 0:02:48]} 8. Re1 {[%clk 0:02:50]}  Qe7 {[%clk 0:02:44]} 9. dxe5 {[%clk 0:02:50]}  Nxe5 {[%clk 0:02:42]} 10. Nxe5 {[%clk 0:02:49]}  dxe5 {[%clk 0:02:42]} 11. Nc4 {[%clk 0:02:48]}  Bg4 {[%clk 0:02:36]} 12. Qb3 {[%clk 0:02:46]}  c6 {[%clk 0:02:34]} 13. h3 {[%clk 0:02:43]}  Be6 {[%clk 0:02:33]} 14. Qa3 {[%clk 0:02:43]}  Qxa3 {[%clk 0:02:28]} 15. Nxa3 {[%clk 0:02:44]}  Rfd8 {[%clk 0:02:28]} 16. Bc2 {[%clk 0:02:44]}  Bf8 {[%clk 0:02:26]} 17. Bg5 {[%clk 0:02:32]}  Kg7 {[%clk 0:02:24]} 18. Nb1 {[%clk 0:02:14]}  h6 {[%clk 0:02:19]} 19. Be3 {[%clk 0:02:14]}  b6 {[%clk 0:02:14]} 20. a4 {[%clk 0:02:13]}  c5 {[%clk 0:02:06]} 21. a5 {[%clk 0:02:09]}  b5 {[%clk 0:02:00]} 22. a6 {[%clk 0:02:09]}  Rd7 {[%clk 0:01:54]} 23. Nd2 {[%clk 0:02:07]}  Rad8 {[%clk 0:01:51]} 24. Nf3 {[%clk 0:02:07]}  Bd6 {[%clk 0:01:48]} 25. Red1 {[%clk 0:02:05]}  c4 {[%clk 0:01:30]} 26. Ra5 {[%clk 0:01:44]}  b4 {[%clk 0:01:20]} 27. Rb5 {[%clk 0:01:42]}  b3 {[%clk 0:01:18]} 28. Bb1 {[%clk 0:01:40]}  Bb8 {[%clk 0:00:53]} 29. Rxd7 {[%clk 0:01:38]}  Bxd7 {[%clk 0:00:53]} 30. Rxb8 {[%clk 0:01:19]}  Rxb8 {[%clk 0:00:51]} 31. Nxe5 {[%clk 0:01:19]}  Bb5 {[%clk 0:00:46]} 32. Bxa7 {[%clk 0:01:14]}  Ra8 {[%clk 0:00:35]} 33. Bd4 {[%clk 0:01:14]}  Rxa6 {[%clk 0:00:35]} 34. Ng4 {[%clk 0:01:09]}  Re6 {[%clk 0:00:16]} 35. Nxf6 {[%clk 0:01:07]}  Rxf6 {[%clk 0:00:17]} 36. f4 {[%clk 0:01:01]}  Bc6 {[%clk 0:00:13]} 37. Kf2 {[%clk 0:00:55]}  h5 {[%clk 0:00:11]} 38. g3 {[%clk 0:00:54]}  g5 {[%clk 0:00:08]} 39. Ke3 {[%clk 0:00:48]}  gxf4+ {[%clk 0:00:07]} 40. gxf4 {[%clk 0:00:48]}  h4 {[%clk 0:00:05]} 41. f5 {[%clk 0:00:46]}  Bxe4 {[%clk 0:00:02]} 42. Bxe4 {[%clk 0:00:45]}  Kh6 {[%clk 0:00:00]} 43. Bxf6 {[%clk 0:00:43]} 1-0


[Site "https://www.chess.com"]

[Event "Titled Tuesday Blitz July 25 Late 2023"]
[White "Yolosz"]
[Black "Graham, Nathaniel"]
[BlackFideId "2007983"]
[WhiteElo "2341"]
[BlackElo "2048"]
[Result "0-1"]
[Round "9"]
[TimeControl "180+2"]
[Date "2023.07.25"]
[WhiteClock "0:00:02"]
[BlackClock "0:00:21"]
[Board "109"]

1. d4 {[%clk 0:03:00]}  d5 {[%clk 0:02:58]} 2. Bf4 {[%clk 0:02:45]}  Nf6 {[%clk 0:02:58]} 3. e3 {[%clk 0:02:44]}  c5 {[%clk 0:02:58]} 4. c3 {[%clk 0:02:41]}  Nc6 {[%clk 0:02:58]} 5. Nd2 {[%clk 0:02:39]}  Bf5 {[%clk 0:02:56]} 6. Ngf3 {[%clk 0:02:35]}  e6 {[%clk 0:02:56]} 7. Bb5 {[%clk 0:02:30]}  Bd6 {[%clk 0:02:56]} 8. Bg3 {[%clk 0:02:22]}  O-O {[%clk 0:02:54]} 9. O-O {[%clk 0:02:19]}  h6 {[%clk 0:02:51]} 10. Bxc6 {[%clk 0:02:13]}  bxc6 {[%clk 0:02:50]} 11. Ne5 {[%clk 0:02:13]}  cxd4 {[%clk 0:02:36]} 12. Nxc6 {[%clk 0:02:08]}  Qc7 {[%clk 0:02:28]} 13. Nxd4 {[%clk 0:02:07]}  Bxg3 {[%clk 0:02:28]} 14. hxg3 {[%clk 0:02:05]}  Bd3 {[%clk 0:02:28]} 15. Re1 {[%clk 0:02:03]}  Rab8 {[%clk 0:02:29]} 16. N2b3 {[%clk 0:01:46]}  Bc4 {[%clk 0:02:24]} 17. Qc2 {[%clk 0:01:35]}  Qb6 {[%clk 0:02:07]} 18. Rab1 {[%clk 0:00:49]}  e5 {[%clk 0:02:04]} 19. Nf3 {[%clk 0:00:46]}  e4 {[%clk 0:01:55]} 20. Ne5 {[%clk 0:00:44]}  Bxb3 {[%clk 0:01:52]} 21. axb3 {[%clk 0:00:42]}  Qxb3 {[%clk 0:01:53]} 22. Qxb3 {[%clk 0:00:39]}  Rxb3 {[%clk 0:01:52]} 23. Ra1 {[%clk 0:00:40]}  Rxb2 {[%clk 0:01:21]} 24. Rxa7 {[%clk 0:00:39]}  Rc8 {[%clk 0:01:11]} 25. Nxf7 {[%clk 0:00:32]}  Rxc3 {[%clk 0:01:09]} 26. Ne5 {[%clk 0:00:29]}  Rcc2 {[%clk 0:01:08]} 27. Rf1 {[%clk 0:00:29]}  Rd2 {[%clk 0:00:59]} 28. Re7 {[%clk 0:00:28]}  Rbc2 {[%clk 0:00:57]} 29. g4 {[%clk 0:00:25]}  d4 {[%clk 0:00:55]} 30. exd4 {[%clk 0:00:25]}  e3 {[%clk 0:00:55]} 31. g5 {[%clk 0:00:16]}  hxg5 {[%clk 0:00:54]} 32. Re8+ {[%clk 0:00:16]}  Kh7 {[%clk 0:00:54]} 33. Nf3 {[%clk 0:00:16]}  Rxf2 {[%clk 0:00:41]} 34. Rxe3 {[%clk 0:00:13]}  Rxg2+ {[%clk 0:00:40]} 35. Kh1 {[%clk 0:00:14]}  Ng4 {[%clk 0:00:36]} 36. Nxg5+ {[%clk 0:00:13]}  Kg6 {[%clk 0:00:36]} 37. Rh3 {[%clk 0:00:11]}  Kxg5 {[%clk 0:00:32]} 38. Rg1 {[%clk 0:00:11]}  Rxg1+ {[%clk 0:00:29]} 39. Kxg1 {[%clk 0:00:12]}  Rc1+ {[%clk 0:00:29]} 40. Kg2 {[%clk 0:00:12]}  Rc2+ {[%clk 0:00:28]} 41. Kf1 {[%clk 0:00:12]}  Rd2 {[%clk 0:00:28]} 42. Rg3 {[%clk 0:00:10]}  Rxd4 {[%clk 0:00:27]} 43. Ke2 {[%clk 0:00:11]}  Rf4 {[%clk 0:00:27]} 44. Rg1 {[%clk 0:00:10]}  g6 {[%clk 0:00:26]} 45. Rg3 {[%clk 0:00:10]}  Kf5 {[%clk 0:00:27]} 46. Rg1 {[%clk 0:00:09]}  g5 {[%clk 0:00:28]} 47. Rg3 {[%clk 0:00:09]}  Ne5 {[%clk 0:00:28]} 48. Rg1 {[%clk 0:00:09]}  g4 {[%clk 0:00:29]} 49. Ke3 {[%clk 0:00:09]}  Rf3+ {[%clk 0:00:28]} 50. Ke2 {[%clk 0:00:09]}  Kf4 {[%clk 0:00:29]} 51. Rh1 {[%clk 0:00:08]}  g3 {[%clk 0:00:28]} 52. Rh4+ {[%clk 0:00:08]}  Ng4 {[%clk 0:00:29]} 53. Rh8 {[%clk 0:00:06]}  Rf2+ {[%clk 0:00:28]} 54. Ke1 {[%clk 0:00:06]}  Kf3 {[%clk 0:00:28]} 55. Rf8+ {[%clk 0:00:05]}  Kg2 {[%clk 0:00:28]} 56. Rg8 {[%clk 0:00:05]}  Ra2 {[%clk 0:00:27]} 57. Rxg4 {[%clk 0:00:04]}  Ra1+ {[%clk 0:00:26]} 58. Ke2 {[%clk 0:00:04]}  Ra2+ {[%clk 0:00:26]} 59. Ke1 {[%clk 0:00:04]}  Kf3 {[%clk 0:00:26]} 60. Rg8 {[%clk 0:00:04]}  g2 {[%clk 0:00:26]} 61. Rf8+ {[%clk 0:00:04]}  Kg3 {[%clk 0:00:25]} 62. Rg8+ {[%clk 0:00:02]}  Kh2 {[%clk 0:00:24]} 63. Rh8+ {[%clk 0:00:02]}  Kg1 {[%clk 0:00:25]} 64. Rg8 {[%clk 0:00:03]}  Ra7 {[%clk 0:00:25]} 65. Ke2 {[%clk 0:00:02]}  Re7+ {[%clk 0:00:25]} 66. Kf3 {[%clk 0:00:02]}  Rf7+ {[%clk 0:00:25]} 67. Kg3 {[%clk 0:00:02]}  Kf1 {[%clk 0:00:23]} 68. Kh2 {[%clk 0:00:02]}  Rh7+ {[%clk 0:00:21]} 69. Kg3 {[%clk 0:00:03]}  g1=Q+ {[%clk 0:00:21]} 70. Kf3 {[%clk 0:00:02]}  Rf7+ {[%clk 0:00:21]} 0-1


[Site "https://www.chess.com"]

[Event "Titled Tuesday Blitz July 25 Late 2023"]
[White "Kostiukov, Alexandr"]
[Black "Masterisback04"]
[WhiteFideId "14108100"]
[WhiteElo "2329"]
[BlackElo "1885"]
[Result "1-0"]
[Round "9"]
[TimeControl "180+2"]
[Date "2023.07.25"]
[WhiteClock "0:00:46"]
[BlackClock "0:00:25"]
[Board "112"]

1. g3 {[%clk 0:02:44]}  Nf6 {[%clk 0:02:58]} 2. Bg2 {[%clk 0:02:44]}  g6 {[%clk 0:02:58]} 3. Nf3 {[%clk 0:02:42]}  Bg7 {[%clk 0:02:58]} 4. c4 {[%clk 0:02:43]}  O-O {[%clk 0:02:59]} 5. d4 {[%clk 0:02:44]}  c6 {[%clk 0:02:59]} 6. O-O {[%clk 0:02:43]}  d5 {[%clk 0:02:59]} 7. cxd5 {[%clk 0:02:44]}  cxd5 {[%clk 0:02:59]} 8. Nc3 {[%clk 0:02:42]}  Nc6 {[%clk 0:02:59]} 9. Ne5 {[%clk 0:02:42]}  Bd7 {[%clk 0:02:55]} 10. Bf4 {[%clk 0:02:37]}  Nxe5 {[%clk 0:02:55]} 11. Bxe5 {[%clk 0:02:36]}  Bc6 {[%clk 0:02:54]} 12. Rc1 {[%clk 0:02:31]}  Rc8 {[%clk 0:02:54]} 13. Qb3 {[%clk 0:02:22]}  e6 {[%clk 0:02:48]} 14. Qa3 {[%clk 0:01:46]}  a6 {[%clk 0:02:43]} 15. Na4 {[%clk 0:01:39]}  Nd7 {[%clk 0:02:33]} 16. Bxg7 {[%clk 0:01:37]}  Kxg7 {[%clk 0:02:33]} 17. Nc5 {[%clk 0:01:34]}  Nxc5 {[%clk 0:02:33]} 18. Rxc5 {[%clk 0:01:34]}  Qd6 {[%clk 0:02:24]} 19. Rfc1 {[%clk 0:01:28]}  Rc7 {[%clk 0:02:16]} 20. Qa5 {[%clk 0:01:17]}  Rfc8 {[%clk 0:02:11]} 21. h4 {[%clk 0:01:13]}  h5 {[%clk 0:02:10]} 22. Qb6 {[%clk 0:01:11]}  Kf8 {[%clk 0:02:05]} 23. e3 {[%clk 0:01:09]}  Ke7 {[%clk 0:02:04]} 24. Bf1 {[%clk 0:01:08]}  Kd7 {[%clk 0:02:03]} 25. b4 {[%clk 0:01:06]}  Ba4 {[%clk 0:01:59]} 26. Qa5 {[%clk 0:00:58]}  Rxc5 {[%clk 0:01:38]} 27. bxc5 {[%clk 0:00:54]}  Qc6 {[%clk 0:01:36]} 28. Rb1 {[%clk 0:00:51]}  Bc2 {[%clk 0:01:30]} 29. Rb6 {[%clk 0:00:50]}  Qc7 {[%clk 0:01:27]} 30. Qb4 {[%clk 0:00:46]}  Rb8 {[%clk 0:00:25]} 31. c6+ {[%clk 0:00:46]} 1-0


[Site "https://www.chess.com"]

[Event "Titled Tuesday Blitz July 25 Late 2023"]
[White "Winkels, Marcel"]
[Black "Lutz, Igor Oscar"]
[WhiteFideId "1003887"]
[BlackFideId "2110806"]
[WhiteElo "2081"]
[BlackElo "1974"]
[Result "1-0"]
[Round "9"]
[TimeControl "180+2"]
[Date "2023.07.25"]
[WhiteClock "0:01:14"]
[BlackClock "0:01:02"]
[Board "113"]

1. e4 {[%clk 0:03:00]}  c5 {[%clk 0:02:54]} 2. Nf3 {[%clk 0:02:59]}  Nc6 {[%clk 0:02:53]} 3. Bb5 {[%clk 0:02:58]}  d6 {[%clk 0:02:52]} 4. O-O {[%clk 0:02:57]}  Bg4 {[%clk 0:02:49]} 5. h3 {[%clk 0:02:49]}  Bxf3 {[%clk 0:02:49]} 6. Qxf3 {[%clk 0:02:48]}  g6 {[%clk 0:02:40]} 7. Bxc6+ {[%clk 0:02:41]}  bxc6 {[%clk 0:02:40]} 8. e5 {[%clk 0:02:42]}  d5 {[%clk 0:02:36]} 9. d3 {[%clk 0:02:32]}  Bg7 {[%clk 0:02:36]} 10. Re1 {[%clk 0:02:31]}  Qc7 {[%clk 0:02:31]} 11. e6 {[%clk 0:02:30]}  fxe6 {[%clk 0:02:09]} 12. Rxe6 {[%clk 0:02:22]}  Nf6 {[%clk 0:02:09]} 13. Qe2 {[%clk 0:02:14]}  Kf7 {[%clk 0:01:49]} 14. Nc3 {[%clk 0:01:55]}  Rhe8 {[%clk 0:01:24]} 15. Bd2 {[%clk 0:01:46]}  Ne4 {[%clk 0:01:14]} 16. Nxe4 {[%clk 0:01:34]}  Kxe6 {[%clk 0:01:11]} 17. Ng5+ {[%clk 0:01:22]}  Kd7 {[%clk 0:01:04]} 18. Qe6+ {[%clk 0:01:14]}  Kd8 {[%clk 0:01:02]} 19. Nf7# {[%clk 0:01:14]} 1-0


[Site "https://www.chess.com"]

[Event "Titled Tuesday Blitz July 25 Late 2023"]
[White "Jahnz, Fabian"]
[Black "Xia, Brandon"]
[WhiteFideId "4653300"]
[BlackFideId "30921880"]
[WhiteElo "2169"]
[BlackElo "2338"]
[Result "0-1"]
[Round "9"]
[TimeControl "180+2"]
[Date "2023.07.25"]
[WhiteClock "0:00:18"]
[BlackClock "0:00:48"]
[Board "115"]

1. e4 {[%clk 0:03:00]}  g6 {[%clk 0:02:02]} 2. d4 {[%clk 0:03:00]}  Bg7 {[%clk 0:02:03]} 3. Nc3 {[%clk 0:02:59]}  d6 {[%clk 0:02:03]} 4. Bg5 {[%clk 0:02:57]}  a6 {[%clk 0:02:04]} 5. Qd2 {[%clk 0:02:57]}  b5 {[%clk 0:02:03]} 6. O-O-O {[%clk 0:02:56]}  Bb7 {[%clk 0:02:04]} 7. f3 {[%clk 0:02:55]}  Nd7 {[%clk 0:02:04]} 8. h4 {[%clk 0:02:54]}  h6 {[%clk 0:02:05]} 9. Be3 {[%clk 0:02:53]}  c5 {[%clk 0:02:06]} 10. dxc5 {[%clk 0:02:51]}  Nxc5 {[%clk 0:02:06]} 11. Bxc5 {[%clk 0:02:49]}  dxc5 {[%clk 0:02:06]} 12. Qxd8+ {[%clk 0:02:49]}  Rxd8 {[%clk 0:02:07]} 13. Rxd8+ {[%clk 0:02:49]}  Kxd8 {[%clk 0:02:08]} 14. Nge2 {[%clk 0:02:41]}  Nf6 {[%clk 0:02:08]} 15. g4 {[%clk 0:02:39]}  Kc7 {[%clk 0:02:09]} 16. Bg2 {[%clk 0:02:34]}  Nd7 {[%clk 0:02:09]} 17. f4 {[%clk 0:02:29]}  Nb6 {[%clk 0:02:06]} 18. Rg1 {[%clk 0:02:20]}  h5 {[%clk 0:02:06]} 19. g5 {[%clk 0:02:17]}  Rd8 {[%clk 0:02:06]} 20. Rd1 {[%clk 0:02:15]}  Rxd1+ {[%clk 0:02:04]} 21. Kxd1 {[%clk 0:02:16]}  Nc4 {[%clk 0:02:04]} 22. Kc1 {[%clk 0:02:13]}  b4 {[%clk 0:02:02]} 23. Nd1 {[%clk 0:02:05]}  a5 {[%clk 0:01:59]} 24. c3 {[%clk 0:02:04]}  Nd6 {[%clk 0:01:57]} 25. Ng3 {[%clk 0:01:57]}  a4 {[%clk 0:01:47]} 26. Kc2 {[%clk 0:01:46]}  Kb6 {[%clk 0:01:42]} 27. Ne3 {[%clk 0:01:41]}  e6 {[%clk 0:01:39]} 28. cxb4 {[%clk 0:01:27]}  cxb4 {[%clk 0:01:38]} 29. b3 {[%clk 0:01:28]}  a3 {[%clk 0:01:30]} 30. Kd3 {[%clk 0:01:25]}  Nb5 {[%clk 0:01:30]} 31. Nc4+ {[%clk 0:01:24]}  Kc5 {[%clk 0:01:28]} 32. Ne2 {[%clk 0:01:20]}  Ba6 {[%clk 0:01:23]} 33. Bh3 {[%clk 0:01:16]}  Nd6 {[%clk 0:01:19]} 34. f5 {[%clk 0:01:01]}  Nxc4 {[%clk 0:01:17]} 35. bxc4 {[%clk 0:00:47]}  Bxc4+ {[%clk 0:01:18]} 36. Kc2 {[%clk 0:00:48]}  Bxa2 {[%clk 0:01:18]} 37. fxg6 {[%clk 0:00:46]}  fxg6 {[%clk 0:01:17]} 38. Nc1 {[%clk 0:00:44]}  Bc4 {[%clk 0:01:11]} 39. Nb3+ {[%clk 0:00:44]}  Kb5 {[%clk 0:01:03]} 40. Nd2 {[%clk 0:00:27]}  a2 {[%clk 0:01:02]} 41. Nxc4 {[%clk 0:00:27]}  a1=Q {[%clk 0:00:58]} 42. Bxe6 {[%clk 0:00:25]}  Qc3+ {[%clk 0:00:58]} 43. Kb1 {[%clk 0:00:25]}  b3 {[%clk 0:00:50]} 44. Na3+ {[%clk 0:00:18]}  Kb4 {[%clk 0:00:48]} 0-1


[Site "https://www.chess.com"]

[Event "Titled Tuesday Blitz July 25 Late 2023"]
[White "Clawitter, Craig"]
[Black "Osiecki, Stanislaw"]
[WhiteFideId "2023105"]
[BlackFideId "1102990"]
[WhiteElo "2268"]
[BlackElo "2057"]
[Result "0-1"]
[Round "9"]
[TimeControl "180+2"]
[Date "2023.07.25"]
[WhiteClock "0:00:00"]
[BlackClock "0:00:37"]
[Board "116"]

1. e4 {[%clk 0:03:00]}  e6 {[%clk 0:03:00]} 2. d4 {[%clk 0:03:00]}  d5 {[%clk 0:03:00]} 3. e5 {[%clk 0:02:59]}  c5 {[%clk 0:03:00]} 4. c3 {[%clk 0:02:59]}  Nc6 {[%clk 0:02:59]} 5. Nf3 {[%clk 0:02:59]}  Qb6 {[%clk 0:02:59]} 6. a3 {[%clk 0:02:54]}  c4 {[%clk 0:03:00]} 7. Nbd2 {[%clk 0:02:53]}  Na5 {[%clk 0:03:00]} 8. g3 {[%clk 0:02:53]}  Bd7 {[%clk 0:03:00]} 9. Bg2 {[%clk 0:02:53]}  O-O-O {[%clk 0:03:00]} 10. O-O {[%clk 0:02:53]}  h6 {[%clk 0:02:59]} 11. Rb1 {[%clk 0:02:51]}  Kb8 {[%clk 0:02:58]} 12. b3 {[%clk 0:02:27]}  cxb3 {[%clk 0:02:57]} 13. Nxb3 {[%clk 0:02:27]}  Ba4 {[%clk 0:02:57]} 14. Nfd2 {[%clk 0:02:27]}  Rc8 {[%clk 0:02:53]} 15. Qc2 {[%clk 0:02:11]}  Nxb3 {[%clk 0:02:45]} 16. Nxb3 {[%clk 0:02:11]}  Bxb3 {[%clk 0:02:31]} 17. Rxb3 {[%clk 0:02:08]}  Qxd4 {[%clk 0:02:22]} 18. Qb2 {[%clk 0:01:35]}  Qc4 {[%clk 0:02:08]} 19. Rxb7+ {[%clk 0:01:29]}  Ka8 {[%clk 0:02:08]} 20. Be3 {[%clk 0:01:21]}  Bc5 {[%clk 0:01:58]} 21. Rb1 {[%clk 0:00:51]}  Ne7 {[%clk 0:01:45]} 22. Rxe7 {[%clk 0:00:34]}  Rb8 {[%clk 0:01:33]} 23. Rb7 {[%clk 0:00:33]}  Bb6 {[%clk 0:01:27]} 24. Rxb8+ {[%clk 0:00:22]}  Rxb8 {[%clk 0:01:25]} 25. Bxb6 {[%clk 0:00:22]}  Rxb6 {[%clk 0:01:25]} 26. Qc2 {[%clk 0:00:22]}  Rxb1+ {[%clk 0:01:22]} 27. Qxb1 {[%clk 0:00:23]}  Qxc3 {[%clk 0:01:22]} 28. h4 {[%clk 0:00:12]}  Qxa3 {[%clk 0:01:14]} 29. Qh7 {[%clk 0:00:13]}  Qa1+ {[%clk 0:01:11]} 30. Kh2 {[%clk 0:00:12]}  Qxe5 {[%clk 0:01:11]} 31. Qg8+ {[%clk 0:00:13]}  Kb7 {[%clk 0:01:10]} 32. Qxf7+ {[%clk 0:00:13]}  Kb6 {[%clk 0:01:10]} 33. Bh3 {[%clk 0:00:11]}  Qd4 {[%clk 0:01:05]} 34. Qxe6+ {[%clk 0:00:10]}  Kb5 {[%clk 0:01:02]} 35. Qe3 {[%clk 0:00:08]}  Qxe3 {[%clk 0:00:48]} 36. fxe3 {[%clk 0:00:09]}  a5 {[%clk 0:00:46]} 37. Bf1+ {[%clk 0:00:09]}  Kb4 {[%clk 0:00:46]} 38. Bd3 {[%clk 0:00:07]}  Kb3 {[%clk 0:00:39]} 39. Kg2 {[%clk 0:00:05]}  a4 {[%clk 0:00:38]} 40. Bb1 {[%clk 0:00:03]}  Kb2 {[%clk 0:00:38]} 41. Bf5 {[%clk 0:00:02]}  a3 {[%clk 0:00:37]} 42. Be6 {[%clk 0:00:03]}  a2 {[%clk 0:00:37]} 43. Bxd5 {[%clk 0:00:00]}  a1=Q {[%clk 0:00:37]} 0-1


[Site "https://www.chess.com"]